[Event "Titled Tuesday Blitz April 19 Early 2022"]
[White "Alimpic, Aleksa"]
[Black "Nugumanov, Bakhtiyar"]
[WhiteFideId "974323"]
[BlackFideId "13701797"]
[WhiteElo "2169"]
[BlackElo "2262"]
[Result "0-1"]
[Round "07"]
[TimeControl "180+1"]
[Date "2022.04.19"]
[WhiteClock "0:00:03"]
[BlackClock "0:00:27"]

1. Nf3 {[%clk 0:02:54]}  d5 {[%clk 0:02:53]} 2. g3 {[%clk 0:02:52]}  g6 {[%clk 0:02:48]} 3. c4 {[%clk 0:02:50]}  c6 {[%clk 0:02:47]} 4. Bg2 {[%clk 0:02:49]}  Bg7 {[%clk 0:02:46]} 5. O-O {[%clk 0:02:49]}  Nf6 {[%clk 0:02:41]} 6. b3 {[%clk 0:02:48]}  Ne4 {[%clk 0:02:25]} 7. d4 {[%clk 0:02:48]}  dxc4 {[%clk 0:02:03]} 8. bxc4 {[%clk 0:02:46]}  c5 {[%clk 0:02:02]} 9. e3 {[%clk 0:02:31]}  Nc6 {[%clk 0:01:57]} 10. Bb2 {[%clk 0:02:24]}  Bg4 {[%clk 0:01:47]} 11. h3 {[%clk 0:01:53]}  Bxf3 {[%clk 0:01:37]} 12. Bxf3 {[%clk 0:01:52]}  Ng5 {[%clk 0:01:28]} 13. Bg2 {[%clk 0:01:24]}  cxd4 {[%clk 0:01:23]} 14. Qa4 {[%clk 0:00:55]}  O-O {[%clk 0:01:20]} 15. Rd1 {[%clk 0:00:54]}  Qc8 {[%clk 0:01:00]} 16. exd4 {[%clk 0:00:39]}  Nxh3+ {[%clk 0:00:58]} 17. Kf1 {[%clk 0:00:39]}  Qf5 {[%clk 0:00:48]} 18. Bxh3 {[%clk 0:00:14]}  Qxh3+ {[%clk 0:00:47]} 19. Kg1 {[%clk 0:00:14]}  Rad8 {[%clk 0:00:31]} 20. Na3 {[%clk 0:00:08]}  Bxd4 {[%clk 0:00:28]} 21. Bxd4 {[%clk 0:00:07]}  Nxd4 {[%clk 0:00:29]} 22. Rd3 {[%clk 0:00:03]}  Ne2# {[%clk 0:00:27]} 0-1


[Site "https://www.chess.com"]

[Event "Titled Tuesday Blitz April 19 Early 2022"]
[White "Al-Tarboush, Ward"]
[Black "Qashashvili, Alexandre"]
[WhiteFideId "7601450"]
[BlackFideId "13600842"]
[WhiteElo "2276"]
[BlackElo "2316"]
[Result "1-0"]
[Round "07"]
[TimeControl "180+1"]
[Date "2022.04.19"]
[WhiteClock "0:01:09"]
[BlackClock "0:00:14"]

1. e4 {[%clk 0:02:57]}  c6 {[%clk 0:03:00]} 2. Nf3 {[%clk 0:02:56]}  d5 {[%clk 0:02:59]} 3. Nc3 {[%clk 0:02:57]}  dxe4 {[%clk 0:02:58]} 4. Nxe4 {[%clk 0:02:58]}  Nd7 {[%clk 0:02:57]} 5. Qe2 {[%clk 0:02:58]}  Ndf6 {[%clk 0:02:56]} 6. d4 {[%clk 0:02:58]}  Nxe4 {[%clk 0:02:55]} 7. Qxe4 {[%clk 0:02:59]}  Nf6 {[%clk 0:02:54]} 8. Qh4 {[%clk 0:02:59]}  Bf5 {[%clk 0:02:50]} 9. c3 {[%clk 0:02:57]}  e6 {[%clk 0:02:47]} 10. Be2 {[%clk 0:02:56]}  Ne4 {[%clk 0:02:41]} 11. O-O {[%clk 0:02:52]}  Qxh4 {[%clk 0:02:28]} 12. Nxh4 {[%clk 0:02:53]}  Bg6 {[%clk 0:02:27]} 13. Bf4 {[%clk 0:02:49]}  Bd6 {[%clk 0:02:23]} 14. Nxg6 {[%clk 0:02:48]}  hxg6 {[%clk 0:02:21]} 15. Bxd6 {[%clk 0:02:48]}  Nxd6 {[%clk 0:02:20]} 16. f4 {[%clk 0:02:49]}  O-O-O {[%clk 0:02:19]} 17. a4 {[%clk 0:02:48]}  Rh6 {[%clk 0:02:10]} 18. a5 {[%clk 0:02:47]}  a6 {[%clk 0:02:09]} 19. Bf3 {[%clk 0:02:35]}  Rdh8 {[%clk 0:02:09]} 20. h3 {[%clk 0:02:34]}  Nf5 {[%clk 0:02:06]} 21. b4 {[%clk 0:02:31]}  Rh4 {[%clk 0:02:02]} 22. Bd1 {[%clk 0:02:12]}  Ne3 {[%clk 0:01:55]} 23. Rf3 {[%clk 0:01:49]}  Nd5 {[%clk 0:01:50]} 24. c4 {[%clk 0:01:49]}  Nxf4 {[%clk 0:01:34]} 25. b5 {[%clk 0:01:47]}  cxb5 {[%clk 0:01:27]} 26. cxb5 {[%clk 0:01:48]}  Nd5 {[%clk 0:01:26]} 27. bxa6 {[%clk 0:01:40]}  bxa6 {[%clk 0:01:27]} 28. Be2 {[%clk 0:01:30]}  Rf4 {[%clk 0:01:15]} 29. Bxa6+ {[%clk 0:01:28]}  Kc7 {[%clk 0:01:11]} 30. Rb3 {[%clk 0:01:26]}  Rxd4 {[%clk 0:00:54]} 31. Rb7+ {[%clk 0:01:24]}  Kd6 {[%clk 0:00:54]} 32. Rxf7 {[%clk 0:01:25]}  Rb8 {[%clk 0:00:49]} 33. Rxg7 {[%clk 0:01:20]}  Nf4 {[%clk 0:00:47]} 34. Bf1 {[%clk 0:01:18]}  Rb2 {[%clk 0:00:45]} 35. a6 {[%clk 0:01:18]}  Rdd2 {[%clk 0:00:45]} 36. a7 {[%clk 0:01:17]}  Ra2 {[%clk 0:00:29]} 37. a8=Q {[%clk 0:01:15]}  Rxa8 {[%clk 0:00:26]} 38. Rxa8 {[%clk 0:01:15]}  Ke5 {[%clk 0:00:17]} 39. Rf7 {[%clk 0:01:12]}  g5 {[%clk 0:00:13]} 40. Ra5+ {[%clk 0:01:12]}  Kd6 {[%clk 0:00:12]} 41. Rxg5 {[%clk 0:01:10]}  Ne2+ {[%clk 0:00:12]} 42. Bxe2 {[%clk 0:01:10]}  Rxe2 {[%clk 0:00:12]} 43. h4 {[%clk 0:01:10]}  Re1+ {[%clk 0:00:12]} 44. Kh2 {[%clk 0:01:10]}  Ra1 {[%clk 0:00:13]} 45. h5 {[%clk 0:01:10]}  Ra7 {[%clk 0:00:14]} 46. Rxa7 {[%clk 0:01:09]} 1-0


[Site "https://www.chess.com"]

[Event "Titled Tuesday Blitz April 19 Early 2022"]
[White "Antonio, Jorge Carlos"]
[Black "Petrova, Irina"]
[WhiteFideId "113190"]
[BlackFideId "14124122"]
[WhiteElo "2247"]
[BlackElo "1993"]
[Result "1-0"]
[Round "07"]
[TimeControl "180+1"]
[Date "2022.04.19"]
[WhiteClock "0:01:41"]
[BlackClock "0:01:30"]

1. d4 {[%clk 0:02:56]}  d6 {[%clk 0:02:58]} 2. e4 {[%clk 0:02:50]}  Nf6 {[%clk 0:02:57]} 3. Bd3 {[%clk 0:02:48]}  e5 {[%clk 0:02:57]} 4. d5 {[%clk 0:02:45]}  Be7 {[%clk 0:02:56]} 5. c4 {[%clk 0:02:45]}  c6 {[%clk 0:02:56]} 6. Nc3 {[%clk 0:02:40]}  h6 {[%clk 0:02:56]} 7. Nge2 {[%clk 0:02:40]}  cxd5 {[%clk 0:02:51]} 8. exd5 {[%clk 0:02:37]}  a5 {[%clk 0:02:45]} 9. O-O {[%clk 0:02:32]}  Na6 {[%clk 0:02:44]} 10. Ng3 {[%clk 0:02:28]}  Nc5 {[%clk 0:02:41]} 11. Bc2 {[%clk 0:02:26]}  O-O {[%clk 0:02:31]} 12. Re1 {[%clk 0:02:24]}  Nh7 {[%clk 0:02:29]} 13. Be3 {[%clk 0:02:23]}  f5 {[%clk 0:02:20]} 14. Bxc5 {[%clk 0:02:20]}  dxc5 {[%clk 0:02:21]} 15. Rxe5 {[%clk 0:02:17]}  Bd6 {[%clk 0:02:20]} 16. Rxf5 {[%clk 0:02:11]}  Bxf5 {[%clk 0:02:18]} 17. Nxf5 {[%clk 0:02:07]}  Nf6 {[%clk 0:02:06]} 18. Nb5 {[%clk 0:01:57]}  Be5 {[%clk 0:01:56]} 19. Qd3 {[%clk 0:01:47]}  Bxb2 {[%clk 0:01:52]} 20. Rd1 {[%clk 0:01:45]}  a4 {[%clk 0:01:36]} 21. Qg3 {[%clk 0:01:44]}  Kh8 {[%clk 0:01:30]} 22. Qxg7# {[%clk 0:01:41]} 1-0


[Site "https://www.chess.com"]

[Event "Titled Tuesday Blitz April 19 Early 2022"]
[White "Aradhya, Garg"]
[Black "Sarana, Alexey"]
[WhiteFideId "25006746"]
[BlackFideId "24133795"]
[WhiteElo "2169"]
[BlackElo "2666"]
[Result "0-1"]
[Round "07"]
[TimeControl "180+1"]
[Date "2022.04.19"]
[WhiteClock "0:00:02"]
[BlackClock "0:00:31"]

1. d4 {[%clk 0:02:57]}  Nf6 {[%clk 0:02:56]} 2. c4 {[%clk 0:02:58]}  e6 {[%clk 0:02:56]} 3. Nf3 {[%clk 0:02:58]}  d5 {[%clk 0:02:56]} 4. Nc3 {[%clk 0:02:58]}  Nbd7 {[%clk 0:02:54]} 5. cxd5 {[%clk 0:02:55]}  exd5 {[%clk 0:02:55]} 6. Bf4 {[%clk 0:02:55]}  c6 {[%clk 0:02:53]} 7. e3 {[%clk 0:02:55]}  Nh5 {[%clk 0:02:53]} 8. Bg5 {[%clk 0:02:55]}  Be7 {[%clk 0:02:53]} 9. Bxe7 {[%clk 0:02:55]}  Qxe7 {[%clk 0:02:54]} 10. Qc2 {[%clk 0:02:55]}  Nb6 {[%clk 0:02:25]} 11. O-O-O {[%clk 0:02:49]}  Be6 {[%clk 0:02:23]} 12. Ne5 {[%clk 0:02:48]}  O-O-O {[%clk 0:02:19]} 13. Kb1 {[%clk 0:02:40]}  Kb8 {[%clk 0:02:13]} 14. f4 {[%clk 0:02:30]}  f6 {[%clk 0:02:10]} 15. Nf3 {[%clk 0:02:30]}  g6 {[%clk 0:02:08]} 16. Bd3 {[%clk 0:02:29]}  Rhe8 {[%clk 0:02:08]} 17. Rde1 {[%clk 0:02:26]}  Qf7 {[%clk 0:02:01]} 18. Rhf1 {[%clk 0:02:18]}  Ng7 {[%clk 0:02:00]} 19. h3 {[%clk 0:02:13]}  Nf5 {[%clk 0:02:00]} 20. g4 {[%clk 0:02:12]}  Nd6 {[%clk 0:02:00]} 21. a4 {[%clk 0:01:50]}  a5 {[%clk 0:01:48]} 22. Nd2 {[%clk 0:01:48]}  Qc7 {[%clk 0:01:39]} 23. Ka1 {[%clk 0:01:23]}  Bc8 {[%clk 0:01:33]} 24. Re2 {[%clk 0:00:58]}  Re7 {[%clk 0:01:30]} 25. Rfe1 {[%clk 0:00:58]}  Rde8 {[%clk 0:01:30]} 26. b3 {[%clk 0:00:48]}  Nd7 {[%clk 0:01:22]} 27. Kb2 {[%clk 0:00:41]}  Qb6 {[%clk 0:01:21]} 28. Ka2 {[%clk 0:00:37]}  Qb4 {[%clk 0:01:18]} 29. Nf3 {[%clk 0:00:28]}  Nb6 {[%clk 0:01:15]} 30. Nd1 {[%clk 0:00:19]}  Ne4 {[%clk 0:01:08]} 31. Bxe4 {[%clk 0:00:16]}  Rxe4 {[%clk 0:00:45]} 32. Nf2 {[%clk 0:00:15]}  R4e7 {[%clk 0:00:35]} 33. Qc5 {[%clk 0:00:15]}  Qxc5 {[%clk 0:00:34]} 34. dxc5 {[%clk 0:00:15]}  Nd7 {[%clk 0:00:34]} 35. Nd3 {[%clk 0:00:14]}  b6 {[%clk 0:00:34]} 36. cxb6 {[%clk 0:00:13]}  Ba6 {[%clk 0:00:35]} 37. Nd4 {[%clk 0:00:10]}  Bxd3 {[%clk 0:00:28]} 38. Nxc6+ {[%clk 0:00:10]}  Kb7 {[%clk 0:00:28]} 39. Nxe7 {[%clk 0:00:10]}  Bxe2 {[%clk 0:00:29]} 40. Nxd5 {[%clk 0:00:10]}  Bf3 {[%clk 0:00:27]} 41. Nc7 {[%clk 0:00:09]}  Re7 {[%clk 0:00:26]} 42. Nb5 {[%clk 0:00:08]}  Kxb6 {[%clk 0:00:25]} 43. Kb2 {[%clk 0:00:07]}  Bc6 {[%clk 0:00:26]} 44. Nd4 {[%clk 0:00:07]}  Nc5 {[%clk 0:00:26]} 45. Kc3 {[%clk 0:00:06]}  Bd5 {[%clk 0:00:26]} 46. Kc2 {[%clk 0:00:04]}  Rc7 {[%clk 0:00:26]} 47. Kb1 {[%clk 0:00:03]}  Nxb3 {[%clk 0:00:25]} 48. Nxb3 {[%clk 0:00:03]}  Bxb3 {[%clk 0:00:25]} 49. Re2 {[%clk 0:00:04]}  Bxa4 {[%clk 0:00:25]} 50. Rb2+ {[%clk 0:00:04]}  Bb5 {[%clk 0:00:26]} 51. Rd2 {[%clk 0:00:04]}  Rc3 {[%clk 0:00:26]} 52. Rd6+ {[%clk 0:00:04]}  Rc6 {[%clk 0:00:26]} 53. Rd8 {[%clk 0:00:05]}  Re6 {[%clk 0:00:26]} 54. Rf8 {[%clk 0:00:04]}  Kc5 {[%clk 0:00:26]} 55. Rf7 {[%clk 0:00:04]}  Kb4 {[%clk 0:00:26]} 56. f5 {[%clk 0:00:04]}  gxf5 {[%clk 0:00:26]} 57. gxf5 {[%clk 0:00:05]}  Rxe3 {[%clk 0:00:27]} 58. Rxf6 {[%clk 0:00:05]}  a4 {[%clk 0:00:27]} 59. Rb6 {[%clk 0:00:04]}  a3 {[%clk 0:00:27]} 60. f6 {[%clk 0:00:04]}  Rf3 {[%clk 0:00:28]} 61. h4 {[%clk 0:00:02]}  Rf2 {[%clk 0:00:28]} 62. h5 {[%clk 0:00:02]}  a2+ {[%clk 0:00:29]} 63. Ka1 {[%clk 0:00:02]}  Ka3 {[%clk 0:00:29]} 64. Rxb5 {[%clk 0:00:02]}  Rf1+ {[%clk 0:00:30]} 65. Rb1 {[%clk 0:00:02]}  axb1=Q# {[%clk 0:00:31]} 0-1


[Site "https://www.chess.com"]

[Event "Titled Tuesday Blitz April 19 Early 2022"]
[White "Atakhan, Abtin"]
[Black "Sanchez Alvares, Kelvin Antonio"]
[WhiteFideId "22502203"]
[BlackFideId "3906680"]
[WhiteElo "2094"]
[BlackElo "2193"]
[Result "0-1"]
[Round "07"]
[TimeControl "180+1"]
[Date "2022.04.19"]
[WhiteClock "0:00:01"]
[BlackClock "0:00:44"]

1. c4 {[%clk 0:03:00]}  Nf6 {[%clk 0:02:59]} 2. g3 {[%clk 0:03:00]}  c6 {[%clk 0:02:56]} 3. Bg2 {[%clk 0:02:58]}  d5 {[%clk 0:02:56]} 4. Nf3 {[%clk 0:02:58]}  Nbd7 {[%clk 0:02:54]} 5. cxd5 {[%clk 0:02:58]}  cxd5 {[%clk 0:02:52]} 6. d3 {[%clk 0:02:57]}  e5 {[%clk 0:02:36]} 7. Bg5 {[%clk 0:02:52]}  Qa5+ {[%clk 0:02:33]} 8. Qd2 {[%clk 0:02:46]}  Bb4 {[%clk 0:02:30]} 9. Nc3 {[%clk 0:02:44]}  d4 {[%clk 0:02:25]} 10. Rc1 {[%clk 0:01:17]}  dxc3 {[%clk 0:02:23]} 11. bxc3 {[%clk 0:01:17]}  Ba3 {[%clk 0:02:22]} 12. Rb1 {[%clk 0:01:18]}  Nd5 {[%clk 0:02:19]} 13. Rb3 {[%clk 0:01:06]}  Be7 {[%clk 0:02:18]} 14. Bxe7 {[%clk 0:01:03]}  Nxe7 {[%clk 0:02:17]} 15. O-O {[%clk 0:01:04]}  O-O {[%clk 0:02:16]} 16. Rfb1 {[%clk 0:01:04]}  Nc6 {[%clk 0:02:15]} 17. Ne1 {[%clk 0:01:04]}  Qc7 {[%clk 0:02:12]} 18. Nc2 {[%clk 0:01:04]}  b6 {[%clk 0:02:10]} 19. Nb4 {[%clk 0:01:04]}  Bb7 {[%clk 0:02:09]} 20. Nd5 {[%clk 0:01:05]}  Qd8 {[%clk 0:02:08]} 21. c4 {[%clk 0:01:05]}  Nc5 {[%clk 0:02:08]} 22. R3b2 {[%clk 0:01:05]}  Rc8 {[%clk 0:02:07]} 23. e3 {[%clk 0:01:04]}  Ne6 {[%clk 0:02:05]} 24. Qe2 {[%clk 0:01:04]}  Ba8 {[%clk 0:02:03]} 25. Rb5 {[%clk 0:00:57]}  Ne7 {[%clk 0:02:02]} 26. Nxe7+ {[%clk 0:00:55]}  Qxe7 {[%clk 0:02:02]} 27. Bxa8 {[%clk 0:00:54]}  Rxa8 {[%clk 0:02:00]} 28. Rxe5 {[%clk 0:00:55]}  Rfd8 {[%clk 0:01:57]} 29. a4 {[%clk 0:00:53]}  Rac8 {[%clk 0:01:51]} 30. a5 {[%clk 0:00:52]}  Qc7 {[%clk 0:01:50]} 31. Reb5 {[%clk 0:00:45]}  bxa5 {[%clk 0:01:49]} 32. Rb7 {[%clk 0:00:43]}  Qc5 {[%clk 0:01:42]} 33. R1b5 {[%clk 0:00:39]}  Qa3 {[%clk 0:01:30]} 34. Rb3 {[%clk 0:00:31]}  Qa1+ {[%clk 0:01:25]} 35. Kg2 {[%clk 0:00:30]}  Nc5 {[%clk 0:01:24]} 36. Rb1 {[%clk 0:00:29]}  Qa3 {[%clk 0:01:23]} 37. Rxa7 {[%clk 0:00:18]}  Qxd3 {[%clk 0:01:13]} 38. Qf3 {[%clk 0:00:18]}  Qe4 {[%clk 0:01:07]} 39. Rb5 {[%clk 0:00:09]}  Qxf3+ {[%clk 0:01:04]} 40. Kxf3 {[%clk 0:00:10]}  Ne6 {[%clk 0:01:04]} 41. Raxa5 {[%clk 0:00:06]}  Rxc4 {[%clk 0:01:03]} 42. h4 {[%clk 0:00:06]}  h6 {[%clk 0:01:02]} 43. Rb7 {[%clk 0:00:06]}  Rc2 {[%clk 0:00:59]} 44. Kg4 {[%clk 0:00:02]}  Rxf2 {[%clk 0:00:56]} 45. h5 {[%clk 0:00:02]}  Ng5 {[%clk 0:00:48]} 46. Raa7 {[%clk 0:00:01]}  f5+ {[%clk 0:00:44]} 0-1


[Site "https://www.chess.com"]

[Event "Titled Tuesday Blitz April 19 Early 2022"]
[White "Avramidou, Anastasia"]
[Black "Yanayt, Eugene"]
[WhiteFideId "4239873"]
[BlackFideId "2020165"]
[WhiteElo "2183"]
[BlackElo "2046"]
[Result "0-1"]
[Round "07"]
[TimeControl "180+1"]
[Date "2022.04.19"]
[WhiteClock "0:00:06"]
[BlackClock "0:00:21"]

1. Nf3 {[%clk 0:00:15]}  g6 {[%clk 0:02:51]} 2. e3 {[%clk 0:00:15]}  Bg7 {[%clk 0:02:46]} 3. d4 {[%clk 0:00:16]}  Nf6 {[%clk 0:02:43]} 4. c4 {[%clk 0:00:17]}  O-O {[%clk 0:02:37]} 5. Nc3 {[%clk 0:00:18]}  c5 {[%clk 0:02:35]} 6. Be2 {[%clk 0:00:19]}  Nc6 {[%clk 0:02:29]} 7. d5 {[%clk 0:00:19]}  Na5 {[%clk 0:02:25]} 8. Qc2 {[%clk 0:00:19]}  e6 {[%clk 0:02:21]} 9. e4 {[%clk 0:00:18]}  exd5 {[%clk 0:02:17]} 10. cxd5 {[%clk 0:00:19]}  d6 {[%clk 0:02:06]} 11. Nd2 {[%clk 0:00:19]}  Re8 {[%clk 0:01:53]} 12. O-O {[%clk 0:00:20]}  a6 {[%clk 0:01:52]} 13. a4 {[%clk 0:00:20]}  Ng4 {[%clk 0:01:42]} 14. Bxg4 {[%clk 0:00:19]}  Bxg4 {[%clk 0:01:40]} 15. f3 {[%clk 0:00:19]}  Bd7 {[%clk 0:01:34]} 16. Nb3 {[%clk 0:00:17]}  Nc4 {[%clk 0:01:30]} 17. Bf4 {[%clk 0:00:15]}  b5 {[%clk 0:01:28]} 18. axb5 {[%clk 0:00:15]}  axb5 {[%clk 0:01:28]} 19. Rxa8 {[%clk 0:00:16]}  Qxa8 {[%clk 0:01:28]} 20. Nd2 {[%clk 0:00:17]}  Nxb2 {[%clk 0:01:16]} 21. Qxb2 {[%clk 0:00:15]}  b4 {[%clk 0:01:17]} 22. Ndb1 {[%clk 0:00:15]}  bxc3 {[%clk 0:01:11]} 23. Nxc3 {[%clk 0:00:16]}  Rb8 {[%clk 0:01:09]} 24. Qc2 {[%clk 0:00:16]}  Qa3 {[%clk 0:01:06]} 25. Nd1 {[%clk 0:00:15]}  Ba4 {[%clk 0:01:05]} 26. Qd2 {[%clk 0:00:11]}  Bd4+ {[%clk 0:01:01]} 27. Kh1 {[%clk 0:00:11]}  Rb3 {[%clk 0:00:54]} 28. Bxd6 {[%clk 0:00:10]}  Rd3 {[%clk 0:00:54]} 29. Qe2 {[%clk 0:00:09]}  Bb5 {[%clk 0:00:51]} 30. Qe1 {[%clk 0:00:09]}  Qa2 {[%clk 0:00:40]} 31. Bg3 {[%clk 0:00:08]}  Ba4 {[%clk 0:00:40]} 32. d6 {[%clk 0:00:06]}  Rxd1 {[%clk 0:00:36]} 33. Qxd1 {[%clk 0:00:05]}  Bxd1 {[%clk 0:00:36]} 34. Rxd1 {[%clk 0:00:06]}  Qa4 {[%clk 0:00:31]} 35. Rc1 {[%clk 0:00:05]}  c4 {[%clk 0:00:29]} 36. e5 {[%clk 0:00:05]}  c3 {[%clk 0:00:28]} 37. h3 {[%clk 0:00:06]}  c2 {[%clk 0:00:26]} 38. Kh2 {[%clk 0:00:07]}  Be3 {[%clk 0:00:27]} 39. d7 {[%clk 0:00:04]}  Qxd7 {[%clk 0:00:26]} 40. Rxc2 {[%clk 0:00:05]}  Qd3 {[%clk 0:00:25]} 41. Rc8+ {[%clk 0:00:05]}  Kg7 {[%clk 0:00:25]} 42. Rc7 {[%clk 0:00:06]}  Bb6 {[%clk 0:00:25]} 43. Rc6 {[%clk 0:00:06]}  Qb5 {[%clk 0:00:24]} 44. Rc3 {[%clk 0:00:06]}  Bd4 {[%clk 0:00:24]} 45. Rc2 {[%clk 0:00:06]}  Bxe5 {[%clk 0:00:24]} 46. f4 {[%clk 0:00:06]}  Qd3 {[%clk 0:00:20]} 47. Rf2 {[%clk 0:00:06]}  Bd4 {[%clk 0:00:20]} 48. Rf3 {[%clk 0:00:07]}  Qd1 {[%clk 0:00:20]} 49. h4 {[%clk 0:00:05]}  Qg1+ {[%clk 0:00:19]} 50. Kh3 {[%clk 0:00:06]}  Qh1+ {[%clk 0:00:20]} 51. Kg4 {[%clk 0:00:06]}  h5+ {[%clk 0:00:20]} 52. Kg5 {[%clk 0:00:06]}  Bf6# {[%clk 0:00:21]} 0-1


[Site "https://www.chess.com"]

[Event "Titled Tuesday Blitz April 19 Early 2022"]
[White "Baker, Chris W"]
[Black "Sliwicki, Damian"]
[WhiteFideId "401676"]
[BlackFideId "1127128"]
[WhiteElo "2205"]
[BlackElo "2084"]
[Result "1-0"]
[Round "07"]
[TimeControl "180+1"]
[Date "2022.04.19"]
[WhiteClock "0:00:48"]
[BlackClock "0:00:08"]

1. c4 {[%clk 0:03:00]}  Nf6 {[%clk 0:00:47]} 2. Nf3 {[%clk 0:02:59]}  g6 {[%clk 0:00:47]} 3. g3 {[%clk 0:02:59]}  Bg7 {[%clk 0:00:47]} 4. Bg2 {[%clk 0:02:59]}  O-O {[%clk 0:00:48]} 5. O-O {[%clk 0:02:59]}  c5 {[%clk 0:00:48]} 6. Nc3 {[%clk 0:02:58]}  Nc6 {[%clk 0:00:48]} 7. d4 {[%clk 0:02:57]}  cxd4 {[%clk 0:00:49]} 8. Nxd4 {[%clk 0:02:57]}  Nxd4 {[%clk 0:00:48]} 9. Qxd4 {[%clk 0:02:57]}  d6 {[%clk 0:00:49]} 10. Qd2 {[%clk 0:02:48]}  Be6 {[%clk 0:00:48]} 11. b3 {[%clk 0:02:47]}  Qd7 {[%clk 0:00:45]} 12. Bb2 {[%clk 0:02:47]}  Bh3 {[%clk 0:00:45]} 13. Rad1 {[%clk 0:02:45]}  Rad8 {[%clk 0:00:43]} 14. e4 {[%clk 0:02:11]}  Bxg2 {[%clk 0:00:39]} 15. Kxg2 {[%clk 0:02:11]}  Qc6 {[%clk 0:00:38]} 16. f3 {[%clk 0:02:07]}  Rfe8 {[%clk 0:00:36]} 17. Nd5 {[%clk 0:02:06]}  Nxd5 {[%clk 0:00:35]} 18. cxd5 {[%clk 0:02:05]}  Qa6 {[%clk 0:00:34]} 19. Bxg7 {[%clk 0:02:03]}  Kxg7 {[%clk 0:00:35]} 20. Qd4+ {[%clk 0:01:59]}  f6 {[%clk 0:00:35]} 21. Rc1 {[%clk 0:01:57]}  Rc8 {[%clk 0:00:35]} 22. a4 {[%clk 0:01:50]}  b5 {[%clk 0:00:30]} 23. Qd3 {[%clk 0:01:42]}  Qa5 {[%clk 0:00:26]} 24. Rxc8 {[%clk 0:01:37]}  Rxc8 {[%clk 0:00:27]} 25. Qxb5 {[%clk 0:01:33]}  Qd2+ {[%clk 0:00:25]} 26. Rf2 {[%clk 0:01:33]}  Qd1 {[%clk 0:00:24]} 27. Qd7 {[%clk 0:01:25]}  Rc2 {[%clk 0:00:22]} 28. Qxe7+ {[%clk 0:01:24]}  Kg8 {[%clk 0:00:20]} 29. Qxf6 {[%clk 0:01:12]}  Rxf2+ {[%clk 0:00:19]} 30. Kxf2 {[%clk 0:01:12]}  Qd2+ {[%clk 0:00:19]} 31. Kg1 {[%clk 0:01:12]}  Qe3+ {[%clk 0:00:16]} 32. Kg2 {[%clk 0:01:12]}  Qe2+ {[%clk 0:00:13]} 33. Kh3 {[%clk 0:01:12]}  Qf1+ {[%clk 0:00:12]} 34. Kg4 {[%clk 0:01:12]}  Qg2 {[%clk 0:00:11]} 35. Qd8+ {[%clk 0:01:01]}  Kg7 {[%clk 0:00:11]} 36. Qe7+ {[%clk 0:01:01]}  Kg8 {[%clk 0:00:11]} 37. Kg5 {[%clk 0:00:53]}  Qxh2 {[%clk 0:00:07]} 38. Kf6 {[%clk 0:00:49]}  Qb2+ {[%clk 0:00:07]} 39. e5 {[%clk 0:00:48]}  Qxe5+ {[%clk 0:00:07]} 40. Qxe5 {[%clk 0:00:48]}  dxe5 {[%clk 0:00:08]} 41. d6 {[%clk 0:00:48]}  Kf8 {[%clk 0:00:08]} 42. d7 {[%clk 0:00:48]} 1-0


[Site "https://www.chess.com"]

[Event "Titled Tuesday Blitz April 19 Early 2022"]
[White "Balint, Vilmos"]
[Black "Weishaeutel, Moritz"]
[WhiteFideId "718050"]
[BlackFideId "12967300"]
[WhiteElo "2059"]
[BlackElo "2002"]
[Result "0-1"]
[Round "07"]
[TimeControl "180+1"]
[Date "2022.04.19"]
[WhiteClock "0:02:31"]
[BlackClock "0:01:40"]

1. e4 {[%clk 0:03:00]}  e5 {[%clk 0:02:59]} 2. f4 {[%clk 0:03:00]}  d5 {[%clk 0:02:58]} 3. exd5 {[%clk 0:03:00]}  e4 {[%clk 0:02:59]} 4. d3 {[%clk 0:03:00]}  Nf6 {[%clk 0:02:59]} 5. Nc3 {[%clk 0:02:58]}  Bb4 {[%clk 0:02:59]} 6. Bd2 {[%clk 0:02:57]}  e3 {[%clk 0:02:55]} 7. Bxe3 {[%clk 0:02:57]}  Nxd5 {[%clk 0:02:52]} 8. Bd2 {[%clk 0:02:57]}  Bxc3 {[%clk 0:02:26]} 9. Bxc3 {[%clk 0:02:57]}  O-O {[%clk 0:02:26]} 10. Qd2 {[%clk 0:02:56]}  Re8+ {[%clk 0:02:26]} 11. Be2 {[%clk 0:02:56]}  Ne3 {[%clk 0:02:15]} 12. Kf2 {[%clk 0:02:50]}  Nc6 {[%clk 0:02:06]} 13. Bf3 {[%clk 0:02:46]}  Nd4 {[%clk 0:01:57]} 14. Re1 {[%clk 0:02:42]}  Ndxc2 {[%clk 0:01:55]} 15. Re2 {[%clk 0:02:37]}  Bg4 {[%clk 0:01:54]} 16. h3 {[%clk 0:02:32]}  Bh5 {[%clk 0:01:43]} 17. g4 {[%clk 0:02:31]}  Qh4# {[%clk 0:01:40]} 0-1


[Site "https://www.chess.com"]

[Event "Titled Tuesday Blitz April 19 Early 2022"]
[White "Bortnyk, Olexandr"]
[Black "Sjugirov, Sanan"]
[WhiteFideId "14120828"]
[BlackFideId "4189302"]
[WhiteElo "2723"]
[BlackElo "2602"]
[Result "1-0"]
[Round "07"]
[TimeControl "180+1"]
[Date "2022.04.19"]
[WhiteClock "0:00:15"]
[BlackClock "0:00:01"]

1. d4 {[%clk 0:03:00]}  Nf6 {[%clk 0:02:58]} 2. Nc3 {[%clk 0:03:00]}  d5 {[%clk 0:02:59]} 3. Bf4 {[%clk 0:03:01]}  Bf5 {[%clk 0:02:57]} 4. e3 {[%clk 0:03:00]}  e6 {[%clk 0:02:55]} 5. f3 {[%clk 0:02:59]}  a6 {[%clk 0:02:45]} 6. g4 {[%clk 0:02:59]}  Bg6 {[%clk 0:02:46]} 7. h4 {[%clk 0:03:00]}  h5 {[%clk 0:02:46]} 8. g5 {[%clk 0:02:59]}  Nfd7 {[%clk 0:02:46]} 9. Bd3 {[%clk 0:03:00]}  Bxd3 {[%clk 0:02:46]} 10. Qxd3 {[%clk 0:03:01]}  g6 {[%clk 0:02:46]} 11. e4 {[%clk 0:03:02]}  Nb6 {[%clk 0:02:44]} 12. Be5 {[%clk 0:03:01]}  Rg8 {[%clk 0:02:42]} 13. O-O-O {[%clk 0:02:57]}  Nc6 {[%clk 0:02:42]} 14. exd5 {[%clk 0:02:57]}  Nxd5 {[%clk 0:02:19]} 15. Ne4 {[%clk 0:02:55]}  b5 {[%clk 0:01:32]} 16. a3 {[%clk 0:02:18]}  Nxe5 {[%clk 0:01:25]} 17. dxe5 {[%clk 0:02:17]}  Bg7 {[%clk 0:01:25]} 18. Qd4 {[%clk 0:01:37]}  c5 {[%clk 0:00:55]} 19. Nxc5 {[%clk 0:01:16]}  Qc7 {[%clk 0:00:55]} 20. Nd3 {[%clk 0:01:02]}  Ke7 {[%clk 0:00:49]} 21. f4 {[%clk 0:00:59]}  Rgc8 {[%clk 0:00:48]} 22. Rh2 {[%clk 0:00:59]}  Ke8 {[%clk 0:00:42]} 23. Nf3 {[%clk 0:00:58]}  Bf8 {[%clk 0:00:41]} 24. Kb1 {[%clk 0:00:58]}  Qb7 {[%clk 0:00:38]} 25. Nd2 {[%clk 0:00:56]}  b4 {[%clk 0:00:32]} 26. axb4 {[%clk 0:00:53]}  Nxb4 {[%clk 0:00:23]} 27. Nxb4 {[%clk 0:00:48]}  Bxb4 {[%clk 0:00:24]} 28. Ne4 {[%clk 0:00:48]}  Kf8 {[%clk 0:00:13]} 29. Nd6 {[%clk 0:00:48]}  Bxd6 {[%clk 0:00:12]} 30. exd6 {[%clk 0:00:49]}  Kg8 {[%clk 0:00:12]} 31. d7 {[%clk 0:00:47]}  Rd8 {[%clk 0:00:13]} 32. Rhd2 {[%clk 0:00:47]}  Rab8 {[%clk 0:00:13]} 33. c4 {[%clk 0:00:48]}  a5 {[%clk 0:00:12]} 34. c5 {[%clk 0:00:48]}  a4 {[%clk 0:00:08]} 35. Qxa4 {[%clk 0:00:46]}  Ra8 {[%clk 0:00:09]} 36. c6 {[%clk 0:00:45]}  Qc7 {[%clk 0:00:07]} 37. Qxa8 {[%clk 0:00:30]}  Rxa8 {[%clk 0:00:07]} 38. d8=Q+ {[%clk 0:00:31]}  Rxd8 {[%clk 0:00:07]} 39. Rxd8+ {[%clk 0:00:32]}  Kg7 {[%clk 0:00:08]} 40. R8d6 {[%clk 0:00:25]}  Qb6 {[%clk 0:00:06]} 41. Rc1 {[%clk 0:00:22]}  Qb4 {[%clk 0:00:06]} 42. Rdd1 {[%clk 0:00:18]}  Qe4+ {[%clk 0:00:01]} 43. Rc2 {[%clk 0:00:18]}  Qf3 {[%clk 0:00:01]} 44. Rdc1 {[%clk 0:00:15]} 1-0


[Site "https://www.chess.com"]